Cogmind - Beta 9 *** ADVENTURER MODE // 2019.10.22 @ 21:25:24 Player: Bob Result: Self-destructed Performance ------------- Evolutions (2) 1000 Regions Visited (5) 1000 Robots Destroyed (23) 115 Value Destroyed (529) 529 Prototype IDs (2) 40 Alien Tech Used (0) 0 Bonus (109) 109 TOTAL SCORE: 2793 Bonus ------- Follower Combat Kills 109 Cogmind --------- Core Integrity 514/550 Matter 300/300 Energy 31/275 System Corruption 0% Temperature Cool (0) Location -8/Storage Parts ------- Power (1) Deuterium Engine Propulsion (3) Aluminum Leg Aluminum Leg Aluminum Leg Utility (4) Cooling System Large Storage Unit Advanced Sensor Array Signal Interpreter Weapon (3) Heavy Particle Gun Light EM Pulse Cannon Light EM Pulse Cannon Inventory (10) Insulated Plating Hacking Suite System Shield Ion Cannon Assault Cannon Improved Datajack Mining Laser Peak State ------------ Power Deuterium Engine Propulsion Aluminum Leg Aluminum Leg Aluminum Leg Utility Cooling System Large Storage Unit Advanced Sensor Array Signal Interpreter Weapon Heavy Particle Gun Light EM Pulse Cannon Light EM Pulse Cannon Inventory Insulated Plating Hacking Suite System Shield Ion Cannon Assault Cannon Improved Datajack Mining Laser [Rating: 22] Favorites ----------- Power Ion Engine Engine Ion Engine Propulsion Aluminum Leg Leg Aluminum Leg Utility Signal Interpreter Device Sensor Array Storage Large Storage Unit Processor Signal Interpreter Weapon Light Assault Rifle Energy Gun Small Laser Energy Cannon Light EM Pulse Cannon Ballistic Gun Light Assault Rifle Build | -11 -10 -9 -9 -8 -8 ------- Run | Scr Mat Mat Min Mat Sto Slots Evolved 4 | . . 2 . 2 . Power . | . . . . . . Propulsion 1 | . . 1 . . . Utility 2 | . . 1 . 1 . Weapon 1 | . . . . 1 . Parts Attached 20 | 5 5 2 2 6 . Power 2 | 1 . . . 1 . Engine 2 | 1 . . . 1 . Core . | . . . . . . Reactor . | . . . . . . Propulsion 6 | 2 1 1 2 . . Treads . | . . . . . . Leg 6 | 2 1 1 2 . . Wheel . | . . . . . . Hover . | . . . . . . Flight . | . . . . . . Utility 6 | 1 2 1 . 2 . Device 3 | . 1 . . 2 . Storage 2 | 1 . 1 . . . Processor 1 | . 1 . . . . Hackware . | . . . . . . Protection . | . . . . . . Artifact . | . . . . . . Weapon 6 | 1 2 . . 3 . Energy Gun 2 | . 1 . . 1 . Energy Cannon 2 | . . . . 2 . Ballistic Gun 2 | 1 1 . . . . Ballistic Cannon . | . . . . . . Launcher . | . . . . . . Special Weapon . | . . . . . . Impact Weapon . | . . . . . . Slashing Weapon . | . . . . . . Piercing Weapon . | . . . . . . Special Melee Weapon . | . . . . . . Unidentified Prototypes 2 | . . . . 2 . Parts Lost 2 | . . . 1 1 . Power . | . . . . . . Propulsion . | . . . . . . Utility . | . . . . . . Weapon 2 | . . . 1 1 . Highest Loss Streak 1 | . . . 1 1 . Average Slot Usage (%) 92 | . 89 93 93 90 100 Engine 10 | . 14 11 11 9 9 Leg 30 | . 28 26 33 27 27 Device 11 | . 5 11 11 18 18 Storage 10 | . 12 11 11 9 9 Processor 9 | . 1 11 11 9 9 Energy Gun 2 | . 11 . . . 9 Energy Cannon 4 | . . . . 18 18 Ballistic Gun 13 | . 15 22 16 . . Naked Turns . | . . . . . . Heaviest Build 39 | 10 12 24 24 39 39 Greatest Support 30 | 20 20 30 30 30 30 Greatest Overweight (x) 1 | 1 . 1 . 1 1 Average Overweight (x) . | . . . . 1 1 Largest Inventory Capacity 10 | 6 6 10 10 10 10 Average Capacity 9 | 5 5 10 10 10 10 Most Carried 8 | 2 4 6 8 8 7 Average Carried 5 | . 2 4 6 5 7 Final Capacity 10 | . . . . . 10 Final Carried 7 | . . . . . 7 Class Distribution -------------------- 94% | Mutant 5% | Skirmisher Dominant Class ---------------- Mutant | -10/Materials Mutant | -9/Materials Mutant | -9/Mines Mutant | -8/Materials Skirmisher | -8/Storage Resources | -11 -10 -9 -9 -8 -8 ----------- Run | Scr Mat Mat Min Mat Sto Matter Collected 501 | 161 44 49 124 123 . Remotely . | . . . . . . Salvage Created 750 | . 137 178 82 269 84 Parts 58 | . 8 23 5 21 1 Haulers Intercepted 2 | . 1 . . 1 . Recyclers Shooed . | . . . . . . Parts Field Recycled . | . . . . . . Retrieved Matter . | . . . . . . Parts Self-Destructed . | . . . . . . Prevented . | . . . . . . Kills | -11 -10 -9 -9 -8 -8 ------- Run | Scr Mat Mat Min Mat Sto Combat Hostiles Destroyed 13 | . 2 5 3 2 1 Guns 10 | . 2 5 3 . . AOE 3 | . . . . 2 1 Classes Destroyed 8 | . 2 3 . 3 . Builder 1 | . . . . 1 . Tunneler 1 | . . . . 1 . Hauler 2 | . 1 . . 1 . Operator 2 | . . . . 2 . Watcher 4 | . . 2 . 1 1 Swarmer 5 | . . 3 2 . . Grunt 5 | . 2 1 1 1 . Sentry 3 | . . 1 . 1 1 Best Kill Streak 5 | . 3 4 2 5 2 Combat Bots Only 3 | . 2 3 2 1 1 Max Kills in Single Turn 3 | . 1 2 1 3 1 Gunslinging 1 | . . 1 . . . Exploded 1 | . . . . 1 1 Melee . | . . . . . . Uniques/NPCs Destroyed . | . . . . . . Combat | -11 -10 -9 -9 -8 -8 -------- Run | Scr Mat Mat Min Mat Sto Damage Taken 629 | . 117 151 228 . 133 Core 117 | . 22 32 27 . 36 Absorbed by Shields . | . . . . . . Core Remaining (%) 92 | 100 91 . 85 . . Volleys Fired 70 | . 12 30 16 7 5 Largest 3 | . 2 2 2 2 3 Hottest 167 | . 60 40 40 112 167 Shots Fired 140 | . 24 60 28 14 14 Gun 116 | . 24 60 28 . 4 Cannon 24 | . . . . 14 10 Launcher . | . . . . . . Special . | . . . . . . Kinetic 100 | . 12 60 28 . . Thermal 16 | . 12 . . . 4 Explosive . | . . . . . . Electromagnetic 24 | . . . . 14 10 Robot Hit Streak 23 | . 23 12 10 11 16 Robot Miss Streak 4 | . . 4 1 . 1 Penetration Max . | . . . . . . Secondary Targets 1 | . . 1 . . . Max Gunslinging Chain 1 | . . 1 . . . Shots Hit Robots 106 | . 23 39 22 10 12 Core Hits 44 | . 8 15 8 10 3 Critical Hits . | . . . . . . Critical Kills . | . . . . . . Critical Parts Destroyed . | . . . . . . Melee Attacks . | . . . . . . Impact . | . . . . . . Slashing . | . . . . . . Piercing . | . . . . . . Sneak Attacks . | . . . . . . Combat Hostiles . | . . . . . . Follow-up Attacks . | . . . . . . Damage Inflicted 1461 | . 239 297 185 396 344 Guns 757 | . 233 297 185 . 42 Cannons 481 | . . . . 230 251 Explosions 217 | . . . . 166 51 Melee . | . . . . . . Ramming 6 | . 6 . . . . Kinetic 591 | . 109 297 185 . . Thermal 383 | . 124 . . 166 93 Explosive . | . . . . . . Electromagnetic 481 | . . . . 230 251 Impact . | . . . . . . Slashing . | . . . . . . Piercing . | . . . . . . Highest Corruption 2 | . 2 . . . . Average Corruption 1 | . 1 . . . . Corruption Purged . | . . . . . . Effects 3 | . 3 . . . . Message Errors 1 | . 1 . . . . Data Loss (minor) 2 | . 2 . . . . Overload Shots . | . . . . . . Overflow Damage 37 | . . . . . 37 Projectiles 37 | . . . . . 37 Explosions . | . . . . . . Melee . | . . . . . . Knockbacks . | . . . . . . Impact . | . . . . . . Kinetic . | . . . . . . Secondary . | . . . . . . Self-Inflicted Damage 3 | . 3 . . . . Shots . | . . . . . . Rammed 1 | . 1 . . . . Targets Rammed 1 | . 1 . . . . Kicked . | . . . . . . Crushed . | . . . . . . Highest Temperature 144 | . 144 6 19 . 48 Average Temperature 41 | . 63 3 9 . 22 Received Heat Transfer 291 | . 84 42 120 . 45 Siege Activations . | . . . . . . Robots Corrupted 1 | . . . . . 1 Combat Hostiles . | . . . . . . Parts Fried 2 | . . . . . 2 Impact Corruptions . | . . . . . . Robots Melted . | . . . . . . Combat Hostiles . | . . . . . . Parts Melted 2 | . 1 . . 1 . Heat Transferred 599 | . 275 . . 200 124 Parts Sabotaged . | . . . . . . Parts Stolen . | . . . . . . Parts Stripped . | . . . . . . Power Chain Reactions 3 | . . . . 2 1 Missiles Intercepted . | . . . . . . Alert | -11 -10 -9 -9 -8 -8 ------- Run | Scr Mat Mat Min Mat Sto Peak Influence 224 | . 102 195 224 141 82 Average Influence 63 | . 58 84 64 63 57 Maximum Alert Level 1 | . . . 1 . . Low Security (%) 97 | . . . . . . Level 1 2 | . . . . . . Level 2 . | . . . . . . Level 3 . | . . . . . . Level 4 . | . . . . . . Level 5 . | . . . . . . High Security . | . . . . . . Max Security . | . . . . . . Squads Dispatched 3 | . . 1 . 1 1 Investigation . | . . . . . . Extermination . | . . . . . . Reinforcement 2 | . . 1 . 1 . Assault . | . . . . . . Garrison 1 | . . . . . 1 Intercept . | . . . . . . Construction Impeded . | . . . . . . Haulers Reinforced . | . . . . . . Stealth | -11 -10 -9 -9 -8 -8 --------- Run | Scr Mat Mat Min Mat Sto Distress Signals 5 | . 1 2 . 1 1 Communications Jammed . | . . . . . . Distress Signals . | . . . . . . Times Spotted 38 | . 6 12 7 5 8 Peak Tracking Total 7 | . 3 7 4 2 5 Tactical Retreats 2 | . . 1 . . 1 Traps | -11 -10 -9 -9 -8 -8 ------- Run | Scr Mat Mat Min Mat Sto Traps Triggered 2 | . 2 . . . . Indirectly . | . . . . . . Trap Hack Attempts . | . . . . . . Triggered . | . . . . . . Disarmed . | . . . . . . Reprogrammed . | . . . . . . Reused . | . . . . . . Traps Extracted . | . . . . . . Installed . | . . . . . . Triggered . | . . . . . . Machines | -11 -10 -9 -9 -8 -8 ---------- Run | Scr Mat Mat Min Mat Sto Machines Disabled 1 | . . . . 1 . Max in Single Turn 1 | . . . . 1 . Machines Sabotaged . | . . . . . . Garrisons Compromised . | . . . . . . Overloaded Fab Kills . | . . . . . . Fab Network Shutdowns . | . . . . . . Hacking | -11 -10 -9 -9 -8 -8 --------- Run | Scr Mat Mat Min Mat Sto Machines Accessed 2 | . . . 1 . 1 Terminals 2 | . . . 1 . 1 Fabricators . | . . . . . . Repair Stations . | . . . . . . Recycling Units . | . . . . . . Scanalyzers . | . . . . . . Garrison Access . | . . . . . . Total Hacks 2 | . . . 1 . 1 Successful 2 | . . . 1 . 1 Failed . | . . . . . . Catastrophic . | . . . . . . Database Lockouts . | . . . . . . Manual . | . . . . . . Terminals 2 | . . . 1 . 1 Fabricators . | . . . . . . Repair Stations . | . . . . . . Recycling Units . | . . . . . . Scanalyzers . | . . . . . . Garrison Access . | . . . . . . Terminal Hacks 2 | . . . 1 . 1 Hauler Manifests 1 | . . . . . 1 Zone Layout 1 | . . . 1 . . Fabricator Hacks . | . . . . . . Repair Station Hacks . | . . . . . . Recycling Unit Hacks . | . . . . . . Scanalyzer . | . . . . . . Garrison Access Hacks . | . . . . . . Unauthorized Hacks . | . . . . . . Terminals . | . . . . . . Fabricators . | . . . . . . Repair Stations . | . . . . . . Recycling Units . | . . . . . . Scanalyzers . | . . . . . . Garrison Access . | . . . . . . Data Cores Recovered 1 | . . . . 1 . Used . | . . . . . . Hacking Detections . | . . . . . . Full Trace Events . | . . . . . . Feedback Events . | . . . . . . Feedback Blocked . | . . . . . . Robot Schematics Acquired . | . . . . . . Robots Built . | . . . . . . Matter . | . . . . . . Time . | . . . . . . Total Robot Build Rating . | . . . . . . Part Schematics Acquired . | . . . . . . Parts Built . | . . . . . . Matter . | . . . . . . Time . | . . . . . . Total Part Build Rating . | . . . . . . Parts Repaired . | . . . . . . Time . | . . . . . . Parts Recycled . | . . . . . . Recycled Matter . | . . . . . . Retrieved Matter . | . . . . . . Retrieved Components . | . . . . . . Parts Scanalyzed . | . . . . . . Part Schematics Acquired . | . . . . . . Parts Damaged . | . . . . . . Bothacking | -11 -10 -9 -9 -8 -8 ------------ Run | Scr Mat Mat Min Mat Sto Used RIF Installer . | . . . . . . Robots Hacked . | . . . . . . Non-combat . | . . . . . . Combat . | . . . . . . Robot Hacks Applied . | . . . . . . Relay Couplers Released . | . . . . . . Robots Rewired . | . . . . . . Allies Hacked . | . . . . . . Hacks Repelled . | . . . . . . Allies | -11 -10 -9 -9 -8 -8 -------- Run | Scr Mat Mat Min Mat Sto Total Allies 3 | . . . 3 . . Largest Group 3 | . . . 3 2 1 Highest-Rated Group 71 | . . . 71 40 9 Highest-Rated Ally 31 | . . . 31 31 9 Total Orders . | . . . . . . Ally Attacks 23 | . . . 12 11 . Total Damage 311 | . . . 184 127 . Kills 5 | . . . 4 1 . Allies Corrupted . | . . . . . . Allies Melted . | . . . . . . Intel | -11 -10 -9 -9 -8 -8 ------- Run | Scr Mat Mat Min Mat Sto Robot Analysis Total . | . . . . . . Derelict Logs Recovered 1 | . . . 1 . . Drone Launches . | . . . . . . Drone Recoveries . | . . . . . . Exploration | -11 -10 -9 -9 -8 -8 ------------- Run | Scr Mat Mat Min Mat Sto Turns Passed 1630 | 56 222 228 763 284 77 Spaces Moved 997 | 41 136 104 524 153 39 Core 8 | 8 . . . . . Treads . | . . . . . . Legs 989 | 33 136 104 524 153 39 Wheels . | . . . . . . Hover . | . . . . . . Flight . | . . . . . . Fastest Speed 50 | 50 120 120 120 150 150 Average Speed 127 | 110 120 139 120 150 150 Slowest Speed 150 | 120 120 150 120 150 150 Overloaded Moves . | . . . . . . Propulsion Burnouts . | . . . . . . Robots Hopped . | . . . . . . Cave-ins Triggered . | . . . . . . Exploration Rate (%) 27 | 4 26 15 91 20 10 Regions Visited 5 Branch Regions 2 Pre-discovered Areas . | . . . . . . Known Exits Taken 4 | . 1 1 1 1 . Unknown Exits Taken 1 | 1 . . . . . Scrap Searched . | . . . . . . Spaces Dug . | . . . . . . Terrain Destroyed 18 | . . . . 15 3 Melee . | . . . . . . Projectile . | . . . . . . AOE 18 | . . . . 15 3 Actions | -11 -10 -9 -9 -8 -8 --------- Run | Scr Mat Mat Min Mat Sto Total 1242 | 52 173 139 636 196 46 Wait 119 | . 13 . 90 14 2 Move 992 | 40 135 103 523 152 39 Hop . | . . . . . . Pick Up 29 | 7 5 4 3 10 . Fast Attach . | . . . . . . Attach 15 | 5 3 2 . 5 . Detach 1 | . . . . 1 . Swap 6 | . 2 . 2 2 . Drop 9 | . 2 . 2 5 . Fire 70 | . 12 30 16 7 5 Melee . | . . . . . . Ram . | . . . . . . Kick 1 | . 1 . . . . Crush . | . . . . . . Escape Stasis . | . . . . . . Rewire . | . . . . . . Trap . | . . . . . . Miscellaneous . | . . . . . . Route ------- -11/Scrapyard -10/Materials -9/Materials -9/Mines (discovered 2 exits: *Mat x2) -8/Materials -8/Storage History --------- Turn | Location | Event 8 | -11/Scrapyard | Discovered new exit (range 15) 57 | -11/Scrapyard | Entered Materials 228 | -10/Materials | Discovered new exit (range 16) 256 | -10/Materials | Identified exit to Materials 279 | -10/Materials | Entered another Materials area 279 | -9/Materials | Evolved 2 slots: Propulsion x1, Utility x1 300 | -9/Materials | Build established: Mutant 468 | -9/Materials | Discovered new exit (range 6) 473 | -9/Materials | Identified exit to Mines 507 | -9/Materials | Entered Mines 510 | -9/Mines | Received a Mining Laser from a helpful Derelict 582 | -9/Mines | Discovered new exit (range 8) 589 | -9/Mines | Identified exit to Materials 596 | -9/Mines | Discovered exit to Materials (range 12) 609 | -9/Mines | Learned 4 Materials zone layouts 1270 | -9/Mines | Entered Materials 1270 | -8/Materials | Accompanied by 2 allies 1270 | -8/Materials | Evolved 2 slots: Utility x1, Weapon x1 1275 | -8/Materials | Led the pair of lost Derelicts to an unsafe place 1492 | -8/Materials | Discovered new exit (range 14) 1527 | -8/Materials | Identified exit to Storage 1554 | -8/Materials | Entered Storage 1554 | -8/Storage | Accompanied by 1 ally 1609 | -8/Storage | Garrison activated, responded to threat 1631 | -8/Storage | Self-destructed Last Messages --------------- 01595_ Y-45 Defender destroyed. 01597_ K-01 Serf collects debris. 01597_ 2G-4EJ(z) destroyed. 01600_ K-01 Serf collects debris. 01606_ Destroyed Imp. Hover Unit. 01606_ K-01 Serf cleans the Terminal. 01607_ K-01 Serf collects debris. 01609_ W-25 Informer calls for garrison support. 01609_ ALERT: Activating Garrison Access S001. [Achievement: Troublemaker] 01609_ Destroyed Lgt. Deuterium Engine. 01609_ Destroyed Imp. Sensor Array. 01609_ K-01 Serf cleans the Terminal. 01610_ W-25 Informer system terminally corrupted. 01610_ Imp. Signal Interpreter fried. 01610_ Visual Processing Unit fried. 01610_ K-01 Serf cleans the Transfer Shaft. 01613_ K-01 Serf collects debris. 01629_ C-30 ARC bursts open, deploying its payload. 01629_ S-10 Pest unfolds itself. Map ----- +----------------------------------------------------+ | | | | | | | | | | | | | | | | | | | | | | | | | | | ?????????????????????????????????????????????????? | | ???????????????????????????????????????? ????????? | | ?????????????????????????????????????? #???????? | | ????????????????????????????????????? ##??????? | | ???????????????????????????????????"" #??????? | | ???????#####?????????????????????? ????????? | | ########"T"######################""""####????????? | | x!% #????????? | | x %/ ?????? | | %% x x #????????? | | ######"Y"################s#####" "### #????????? | | ?????#"""#???????????## sss #"T"#??????????????? | | ?????#####???????????#Y!!@ #"""#??????????????? | | ?????????????????????##!! #####??????????????? | | ??????????????????????# #??????????????????? | | ??????????????????????# #??????????????????? | | ??????????????????????# #??????????????????? | | ??????????????????????# """" #??????????????????? | | ??????????????????????# """" #??????????????????? | | ??????????????????????# """" #??????????????????? | | ??????????????????????# """" #??????????????????? | | ??????????????????????# ???? #??????????????????? | | ??????????????????????###????????????????????????? | | ?????????????????????????????????????????????????? | | ?????????????????????????????????????????????????? | | ?????????????????????????????????????????????????? | | ?????????????????????????????????????????????????? | | ?????????????????????????????????????????????????? | | ?????????????????????????????????????????????????? | | ?????????????????????????????????????????????????? | | ?????????????????????????????????????????????????? | | ?????????????????????????????????????????????????? | | ?????????????????????????????????????????????????? | | ?????????????????????????????????????????????????? | | ?????????????????????????????????????????????????? | | ?????????????????????????????????????????????????? | | ?????????????????????????????????????????????????? | +----------------------------------------------------+ Best States ------------- Heat Dissipation 53 Energy Generation 14 Energy Capacity 275 Matter Stores 300 Matter Capacity 300 Sight Range 16 Robot Scan Range 16 Terrain Scan Density 10 Resistance: KI 20 Resistance: TH 20 Resistance: EX 20 Resistance: EM 20 Resistance: I 20 Resistance: S 20 Resistance: P 20 Evasion (%) 40 Item Schematics ----------------- None Robot Schematics ------------------ None Fabricated ------------ Nothing Alien Tech Used ----------------- None Achievements -------------- Shopping List Troublemaker Challenges ------------ None Game ------ Seed ImpactArmoredMantle Manual? 0 Play Time 00:14:38 Cumulative 154.8 hours Start 2019.10.22 @ 18:23:21 End 2019.10.22 @ 21:25:24 Sessions 1 Manual Loads 0 Difficulty Adventurer Special Mode None Game No. 243 Rogue 239 Adventurer 2 Explorer 0 Win Type - Total 0 Types 0/0/0/0/0/0/0 Lore% 41 Gallery% 55 Achievement% 12 Wizard Run 0 Options --------- ASCII 0 Keyboard 0 Movement Mouse Keybinds 0 Fullscreen 0 Font 16/SmallcapsGlow Map View 76x50 Tactical HUD 1 Map Filters NONE Filters NONE Steam 1 RUN: 0fa21697-e544-45ac-8007-2c50690cab7c